[Event "Late-Titled-Tuesday-Blitz-March-05-2024"]
[Site "Chess.com"]
[Date "2024.03.05"]
[Round "7"]
[White "rodp92"]
[Black "Supelyel"]
[Result "1-0"]
[WhiteElo "2495"]
[BlackElo "2377"]
[TimeControl "180+1"]
[EndTime "15:14:52 PST"]
[Termination "rodp92 won by checkmate"]

1. e4 {[%clk 0:03:00.9]} 1... d6 {[%clk 0:02:59.5]} 2. d4 {[%clk 0:03:00.6]}
2... Nf6 {[%clk 0:02:58.5]} 3. Nc3 {[%clk 0:03:00.9]} 3... e5 {[%clk 0:02:58]}
4. dxe5 {[%clk 0:03:00.4]} 4... dxe5 {[%clk 0:02:58.2]} 5. Qxd8+ {[%clk
0:03:01.2]} 5... Kxd8 {[%clk 0:02:57.6]} 6. Nf3 {[%clk 0:03:01.9]} 6... Bd6
{[%clk 0:02:55.7]} 7. h3 {[%clk 0:03:01.1]} 7... a6 {[%clk 0:02:55.6]} 8. Be3
{[%clk 0:03:01.2]} 8... Be6 {[%clk 0:02:55.6]} 9. O-O-O {[%clk 0:03:00.6]} 9...
Nbd7 {[%clk 0:02:56.2]} 10. Nd2 {[%clk 0:02:57.6]} 10... Ke7 {[%clk 0:02:55.3]}
11. f3 {[%clk 0:02:54.9]} 11... Nh5 {[%clk 0:02:30.6]} 12. Bc4 {[%clk
0:02:41.2]} 12... b5 {[%clk 0:02:11.8]} 13. Bd5 {[%clk 0:02:32.8]} 13... b4
{[%clk 0:01:58.5]} 14. Na4 {[%clk 0:02:24.9]} 14... Rab8 {[%clk 0:01:28]} 15.
Nc4 {[%clk 0:02:22.2]} 15... Ng3 {[%clk 0:01:17.7]} 16. Rhe1 {[%clk 0:02:18.8]}
16... Rb5 {[%clk 0:01:07.1]} 17. Bxe6 {[%clk 0:01:55]} 17... Kxe6 {[%clk
0:00:57.1]} 18. Rd2 {[%clk 0:01:50.7]} 18... Rd8 {[%clk 0:00:31.4]} 19. Red1
{[%clk 0:01:09.1]} 19... Nb8 {[%clk 0:00:19.7]} 20. Nc5+ {[%clk 0:00:45.9]}
20... Ke7 {[%clk 0:00:18.2]} 21. Nxe5 {[%clk 0:00:44.5]} 21... Bxc5 {[%clk
0:00:09.2]} 22. Bxc5+ {[%clk 0:00:41.9]} 22... Rxc5 {[%clk 0:00:10.1]} 23. Rxd8
{[%clk 0:00:40.2]} 23... Rxe5 {[%clk 0:00:10.4]} 24. Rxb8 {[%clk 0:00:39.7]}
24... Ne2+ {[%clk 0:00:09.7]} 25. Kd2 {[%clk 0:00:36]} 25... Nf4 {[%clk
0:00:08.5]} 26. g3 {[%clk 0:00:28.2]} 26... Nxh3 {[%clk 0:00:08.1]} 27. Ke3
{[%clk 0:00:28.1]} 27... Rc5 {[%clk 0:00:08]} 28. Rh1 {[%clk 0:00:21.7]} 28...
Ng5 {[%clk 0:00:08.1]} 29. f4 {[%clk 0:00:21.2]} 29... Ne6 {[%clk 0:00:07.7]}
30. Rh2 {[%clk 0:00:21.3]} 30... h6 {[%clk 0:00:07.5]} 31. Ra8 {[%clk
0:00:20.2]} 31... a5 {[%clk 0:00:07.8]} 32. Rd2 {[%clk 0:00:19.6]} 32... Rc4
{[%clk 0:00:07.6]} 33. Rxa5 {[%clk 0:00:17.5]} 33... Nc5 {[%clk 0:00:07.6]} 34.
Rd4 {[%clk 0:00:15.7]} 34... Rxc2 {[%clk 0:00:07.7]} 35. Rd5 {[%clk 0:00:15.2]}
35... Ne6 {[%clk 0:00:07.5]} 36. f5 {[%clk 0:00:15.1]} 36... Ng5 {[%clk
0:00:07.7]} 37. Rdc5 {[%clk 0:00:14.6]} 37... Rxb2 {[%clk 0:00:07.8]} 38. Rxc7+
{[%clk 0:00:14.4]} 38... Kf8 {[%clk 0:00:08]} 39. Ra8# {[%clk 0:00:13.9]} 1-0

[Event "Late-Titled-Tuesday-Blitz-March-05-2024"]
[Site "Chess.com"]
[Date "2024.03.05"]
[Round "7"]
[White "ACollins05"]
[Black "FMJoseHerrera"]
[Result "1-0"]
[WhiteElo "2613"]
[BlackElo "2755"]
[TimeControl "180+1"]
[EndTime "15:14:55 PST"]
[Termination "ACollins05 won by resignation"]

1. d4 {[%clk 0:03:00.9]} 1... Nf6 {[%clk 0:02:56.7]} 2. c4 {[%clk 0:03:00.1]}
2... c5 {[%clk 0:02:57.4]} 3. d5 {[%clk 0:02:58.3]} 3... b5 {[%clk 0:02:58.1]}
4. cxb5 {[%clk 0:02:58.8]} 4... a6 {[%clk 0:02:58.8]} 5. bxa6 {[%clk 0:02:59.7]}
5... e6 {[%clk 0:02:59.3]} 6. Nc3 {[%clk 0:02:56.3]} 6... exd5 {[%clk
0:02:58.7]} 7. Nxd5 {[%clk 0:02:57.2]} 7... Be7 {[%clk 0:02:58.8]} 8. Nf3 {[%clk
0:02:53.9]} 8... O-O {[%clk 0:02:58.2]} 9. Nxe7+ {[%clk 0:02:52.2]} 9... Qxe7
{[%clk 0:02:59.1]} 10. Bg5 {[%clk 0:02:52]} 10... h6 {[%clk 0:02:38.1]} 11. Bh4
{[%clk 0:02:49.4]} 11... d5 {[%clk 0:02:36.2]} 12. Bxf6 {[%clk 0:02:38.5]} 12...
Qxf6 {[%clk 0:02:35.6]} 13. Qxd5 {[%clk 0:02:38.6]} 13... Qxb2 {[%clk
0:02:28.1]} 14. Rd1 {[%clk 0:02:37.3]} 14... Rxa6 {[%clk 0:02:21.3]} 15. Qb3
{[%clk 0:02:20.5]} 15... Rxa2 {[%clk 0:02:13.5]} 16. Qxb2 {[%clk 0:02:20.4]}
16... Rxb2 {[%clk 0:02:14.4]} 17. e3 {[%clk 0:02:20.9]} 17... Be6 {[%clk
0:02:11.5]} 18. Bd3 {[%clk 0:02:18.8]} 18... c4 {[%clk 0:02:11.4]} 19. Be4
{[%clk 0:02:18.7]} 19... Nd7 {[%clk 0:02:04.8]} 20. O-O {[%clk 0:02:17]} 20...
Nc5 {[%clk 0:02:04.6]} 21. Bd5 {[%clk 0:02:16.9]} 21... Nd3 {[%clk 0:02:00.2]}
22. Bxe6 {[%clk 0:02:06.8]} 22... fxe6 {[%clk 0:02:01.1]} 23. Nd2 {[%clk
0:01:59.4]} 23... Rc8 {[%clk 0:01:49.7]} 24. Nxc4 {[%clk 0:01:54.9]} 24... Rxc4
{[%clk 0:01:39.8]} 25. Rxd3 {[%clk 0:01:54.6]} 25... Rcc2 {[%clk 0:01:40.7]} 26.
Rd7 {[%clk 0:01:53.9]} 26... Kh7 {[%clk 0:01:39.2]} 27. Re7 {[%clk 0:01:53.2]}
27... Rc6 {[%clk 0:01:38.9]} 28. h4 {[%clk 0:01:53.7]} 28... Kg6 {[%clk
0:01:39.3]} 29. g3 {[%clk 0:01:53.7]} 29... Kf6 {[%clk 0:01:39.8]} 30. Ra7
{[%clk 0:01:53.6]} 30... Rcc2 {[%clk 0:01:40.5]} 31. Ra4 {[%clk 0:01:53.6]}
31... e5 {[%clk 0:01:40.1]} 32. Ra6+ {[%clk 0:01:52.5]} 32... Kf5 {[%clk
0:01:40.6]} 33. Kg2 {[%clk 0:01:50]} 33... g6 {[%clk 0:01:40.6]} 34. h5 {[%clk
0:01:47.3]} 34... gxh5 {[%clk 0:01:37.3]} 35. Rxh6 {[%clk 0:01:48.2]} 35... Kg5
{[%clk 0:01:38]} 36. Re6 {[%clk 0:01:45.8]} 36... Kf5 {[%clk 0:01:38.3]} 37. Re8
{[%clk 0:01:45.7]} 37... Rd2 {[%clk 0:01:37.8]} 38. Rf8+ {[%clk 0:01:45.5]}
38... Kg5 {[%clk 0:01:37.9]} 39. Rc1 {[%clk 0:01:43.6]} 39... Re2 {[%clk
0:01:33.7]} 40. Rc3 {[%clk 0:01:29.2]} 40... Ra2 {[%clk 0:01:33.2]} 41. Kf1
{[%clk 0:01:25]} 41... Kg6 {[%clk 0:01:05.9]} 42. Rc5 {[%clk 0:01:22.6]} 42...
Kg7 {[%clk 0:00:54.4]} 43. Rf5 {[%clk 0:01:22]} 43... Reb2 {[%clk 0:00:48.2]}
44. Rcxe5 {[%clk 0:01:19.7]} 44... Rb1+ {[%clk 0:00:47.7]} 45. Kg2 {[%clk
0:01:19.2]} 45... Raa1 {[%clk 0:00:48.6]} 46. Rxh5 {[%clk 0:01:18.2]} 46... Rg1+
{[%clk 0:00:47.9]} 47. Kf3 {[%clk 0:01:18.4]} 47... Rgf1 {[%clk 0:00:08.5]} 48.
Rhf5 {[%clk 0:01:17.6]} 48... Ra4 {[%clk 0:00:07.4]} 49. Rf4 {[%clk 0:01:15.6]}
49... Ra2 {[%clk 0:00:08.3]} 50. Rg5+ {[%clk 0:01:15.2]} 50... Kh6 {[%clk
0:00:07.2]} 51. Rg8 {[%clk 0:01:15.1]} 51... Raxf2+ {[%clk 0:00:07.1]} 52. Ke4
{[%clk 0:01:12.2]} 52... Rxf4+ {[%clk 0:00:06.6]} 53. gxf4 {[%clk 0:01:11.3]}
53... Ra1 {[%clk 0:00:07.1]} 54. Rg2 {[%clk 0:01:09]} 54... Ra4+ {[%clk
0:00:08]} 55. Kf3 {[%clk 0:01:09]} 55... Kh5 {[%clk 0:00:07.8]} 56. f5 {[%clk
0:01:08.1]} 56... Ra5 {[%clk 0:00:08.3]} 57. e4 {[%clk 0:01:08.2]} 57... Ra1
{[%clk 0:00:08.5]} 58. Kf4 {[%clk 0:01:07.4]} 58... Rf1+ {[%clk 0:00:07.9]} 59.
Ke5 {[%clk 0:01:07.8]} 59... Ra1 {[%clk 0:00:08.7]} 60. f6 {[%clk 0:01:06.3]}
60... Ra5+ {[%clk 0:00:09.6]} 61. Kf4 {[%clk 0:01:06.4]} 61... Ra6 {[%clk
0:00:09.5]} 62. e5 {[%clk 0:01:06.7]} 62... Ra4+ {[%clk 0:00:10]} 63. Kf5 {[%clk
0:01:06.9]} 63... Kh6 {[%clk 0:00:09.8]} 64. Rh2+ {[%clk 0:01:05.8]} 1-0

[Event "Late-Titled-Tuesday-Blitz-March-05-2024"]
[Site "Chess.com"]
[Date "2024.03.05"]
[Round "7"]
[White "Irishchessman16"]
[Black "Vse_po_kaify"]
[Result "0-1"]
[WhiteElo "2521"]
[BlackElo "2424"]
[TimeControl "180+1"]
[EndTime "15:14:56 PST"]
[Termination "Vse_po_kaify won on time"]

1. Nf3 {[%clk 0:03:00.9]} 1... d6 {[%clk 0:02:51.1]} 2. e4 {[%clk 0:02:51.2]}
2... g6 {[%clk 0:02:47.5]} 3. d4 {[%clk 0:02:42]} 3... Bg7 {[%clk 0:02:47.8]} 4.
Be3 {[%clk 0:02:41.5]} 4... Nd7 {[%clk 0:02:47.3]} 5. Bd3 {[%clk 0:02:29.8]}
5... a6 {[%clk 0:02:46]} 6. a4 {[%clk 0:02:28.4]} 6... c5 {[%clk 0:02:45.8]} 7.
c3 {[%clk 0:02:28.3]} 7... Ngf6 {[%clk 0:02:43.4]} 8. h3 {[%clk 0:02:28]} 8...
b6 {[%clk 0:02:38.1]} 9. O-O {[%clk 0:02:27.3]} 9... Bb7 {[%clk 0:02:38.2]} 10.
Nbd2 {[%clk 0:02:27.2]} 10... O-O {[%clk 0:02:35.8]} 11. Re1 {[%clk 0:02:24.5]}
11... Qc7 {[%clk 0:02:31.3]} 12. d5 {[%clk 0:02:22.4]} 12... Rfe8 {[%clk
0:02:28]} 13. Nc4 {[%clk 0:02:21.6]} 13... e6 {[%clk 0:02:19.4]} 14. dxe6 {[%clk
0:02:18.8]} 14... Rxe6 {[%clk 0:02:17.5]} 15. Bf4 {[%clk 0:02:18.5]} 15... Qc6
{[%clk 0:01:57.7]} 16. Ng5 {[%clk 0:02:03.9]} 16... d5 {[%clk 0:01:37.7]} 17.
Nxe6 {[%clk 0:01:44.7]} 17... dxc4 {[%clk 0:01:37.1]} 18. Nc7 {[%clk 0:01:28.7]}
18... cxd3 {[%clk 0:01:35.3]} 19. Nxa8 {[%clk 0:01:28.7]} 19... Nxe4 {[%clk
0:01:13.1]} 20. f3 {[%clk 0:01:19.9]} 20... Nef6 {[%clk 0:00:52.8]} 21. Nc7
{[%clk 0:01:19.5]} 21... c4 {[%clk 0:00:46.2]} 22. Ne8 {[%clk 0:01:13.2]} 22...
Nh5 {[%clk 0:00:35.5]} 23. Bh2 {[%clk 0:00:55.7]} 23... Bf8 {[%clk 0:00:35]} 24.
Qd2 {[%clk 0:00:42.5]} 24... Nc5 {[%clk 0:00:32]} 25. Rad1 {[%clk 0:00:36.2]}
25... Nb3 {[%clk 0:00:32.1]} 26. Qg5 {[%clk 0:00:31.4]} 26... Qc5+ {[%clk
0:00:25.8]} 27. Qxc5 {[%clk 0:00:29.6]} 27... Bxc5+ {[%clk 0:00:26.7]} 28. Kh1
{[%clk 0:00:28.7]} 28... Bc6 {[%clk 0:00:22.5]} 29. Nc7 {[%clk 0:00:25.4]} 29...
Bxa4 {[%clk 0:00:19.6]} 30. Nxa6 {[%clk 0:00:25.5]} 30... Bf2 {[%clk 0:00:13.2]}
31. Rf1 {[%clk 0:00:19.6]} 31... Nc5 {[%clk 0:00:12.8]} 32. Rxf2 {[%clk
0:00:17.5]} 32... Bxd1 {[%clk 0:00:09.8]} 33. Nxc5 {[%clk 0:00:17.3]} 33... bxc5
{[%clk 0:00:10.7]} 34. Be5 {[%clk 0:00:16.2]} 34... Be2 {[%clk 0:00:09.2]} 0-1

[Event "Late-Titled-Tuesday-Blitz-March-05-2024"]
[Site "Chess.com"]
[Date "2024.03.05"]
[Round "7"]
[White "TanitoluwaAps116"]
[Black "FabianoCaruana"]
[Result "1-0"]
[WhiteElo "2840"]
[BlackElo "3035"]
[TimeControl "180+1"]
[EndTime "15:14:57 PST"]
[Termination "TanitoluwaAps116 won on time"]

1. e4 {[%clk 0:03:00.9]} 1... c5 {[%clk 0:02:59.5]} 2. Nf3 {[%clk 0:03:00.6]}
2... Nc6 {[%clk 0:03:00.2]} 3. Bb5 {[%clk 0:03:00.3]} 3... g6 {[%clk 0:02:59.4]}
4. Bxc6 {[%clk 0:03:00.5]} 4... dxc6 {[%clk 0:03:00]} 5. d3 {[%clk 0:03:00.1]}
5... Qc7 {[%clk 0:02:59.8]} 6. h3 {[%clk 0:02:57.1]} 6... e5 {[%clk 0:02:59.2]}
7. Be3 {[%clk 0:02:56.6]} 7... Nf6 {[%clk 0:02:57.6]} 8. Nbd2 {[%clk 0:02:56.2]}
8... Nh5 {[%clk 0:02:53.3]} 9. a3 {[%clk 0:02:44.1]} 9... a5 {[%clk 0:02:50.9]}
10. Nc4 {[%clk 0:02:33.9]} 10... f6 {[%clk 0:02:48.8]} 11. O-O {[%clk
0:02:32.8]} 11... b5 {[%clk 0:02:47.1]} 12. Ncd2 {[%clk 0:02:32.2]} 12... Be6
{[%clk 0:02:35.6]} 13. c3 {[%clk 0:02:32.3]} 13... Nf4 {[%clk 0:02:18.4]} 14.
Qc2 {[%clk 0:02:12.6]} 14... g5 {[%clk 0:02:10.6]} 15. d4 {[%clk 0:02:07.8]}
15... Rg8 {[%clk 0:02:09.1]} 16. Rfe1 {[%clk 0:01:56.3]} 16... c4 {[%clk
0:01:58.3]} 17. Rad1 {[%clk 0:01:27.3]} 17... h5 {[%clk 0:01:40.9]} 18. Nf1
{[%clk 0:01:01.7]} 18... Be7 {[%clk 0:01:14.7]} 19. Ng3 {[%clk 0:00:57.2]} 19...
O-O-O {[%clk 0:01:08.8]} 20. Nf5 {[%clk 0:00:51.4]} 20... Bxf5 {[%clk
0:01:05.4]} 21. exf5 {[%clk 0:00:52.3]} 21... Nd3 {[%clk 0:00:58.7]} 22. Re2
{[%clk 0:00:36.4]} 22... e4 {[%clk 0:00:45.6]} 23. Nd2 {[%clk 0:00:33.3]} 23...
g4 {[%clk 0:00:46.2]} 24. h4 {[%clk 0:00:17.7]} 24... g3 {[%clk 0:00:44.2]} 25.
Nxe4 {[%clk 0:00:15.6]} 25... gxf2+ {[%clk 0:00:41.4]} 26. Nxf2 {[%clk 0:00:15]}
26... Nxf2 {[%clk 0:00:28.8]} 27. Bxf2 {[%clk 0:00:15.3]} 27... Rg4 {[%clk
0:00:27.7]} 28. Rde1 {[%clk 0:00:13.9]} 28... Bd6 {[%clk 0:00:24.5]} 29. Re4
{[%clk 0:00:13.8]} 29... Bh2+ {[%clk 0:00:16.1]} 30. Kf1 {[%clk 0:00:12]} 30...
Bg3 {[%clk 0:00:13.2]} 31. Rxg4 {[%clk 0:00:10.4]} 31... hxg4 {[%clk 0:00:14.1]}
32. Qe4 {[%clk 0:00:08.5]} 32... Bxf2 {[%clk 0:00:12.5]} 33. Kxf2 {[%clk
0:00:09.4]} 33... Qh7 {[%clk 0:00:06.3]} 34. Qxc6+ {[%clk 0:00:09.1]} 34... Kb8
{[%clk 0:00:06.3]} 35. Qxb5+ {[%clk 0:00:09.5]} 35... Kc8 {[%clk 0:00:05.8]} 36.
Re6 {[%clk 0:00:06.4]} 36... Qxh4+ {[%clk 0:00:03.6]} 37. Kg1 {[%clk 0:00:06.8]}
1-0

[Event "Late-Titled-Tuesday-Blitz-March-05-2024"]
[Site "Chess.com"]
[Date "2024.03.05"]
[Round "7"]
[White "TigrVShlyape"]
[Black "Slovak_fighter2000"]
[Result "1-0"]
[WhiteElo "2862"]
[BlackElo "2638"]
[TimeControl "180+1"]
[EndTime "15:14:57 PST"]
[Termination "TigrVShlyape won by resignation"]

1. d4 {[%clk 0:03:00.9]} 1... Nf6 {[%clk 0:02:59.8]} 2. Bf4 {[%clk 0:02:52.5]}
2... g6 {[%clk 0:02:59.8]} 3. c3 {[%clk 0:02:51.8]} 3... Bg7 {[%clk 0:02:59.7]}
4. Nf3 {[%clk 0:02:52.1]} 4... O-O {[%clk 0:02:59.8]} 5. h3 {[%clk 0:02:52.5]}
5... d6 {[%clk 0:02:59.6]} 6. Nbd2 {[%clk 0:02:52.9]} 6... b6 {[%clk 0:02:59.9]}
7. e4 {[%clk 0:02:52.5]} 7... Bb7 {[%clk 0:02:59.3]} 8. Bd3 {[%clk 0:02:52.3]}
8... c5 {[%clk 0:02:56.1]} 9. O-O {[%clk 0:02:50.2]} 9... cxd4 {[%clk
0:02:55.3]} 10. cxd4 {[%clk 0:02:50]} 10... Nc6 {[%clk 0:02:55.9]} 11. Re1
{[%clk 0:02:36.7]} 11... Nd7 {[%clk 0:02:41.9]} 12. Be3 {[%clk 0:02:32.4]} 12...
e5 {[%clk 0:02:36.7]} 13. d5 {[%clk 0:02:31.2]} 13... Nd4 {[%clk 0:02:34.2]} 14.
Nxd4 {[%clk 0:02:09.9]} 14... exd4 {[%clk 0:02:35.1]} 15. Bf4 {[%clk 0:02:09.5]}
15... Ne5 {[%clk 0:02:30.7]} 16. Nb3 {[%clk 0:01:56.2]} 16... Qf6 {[%clk
0:02:21.8]} 17. Bg3 {[%clk 0:01:52.9]} 17... a5 {[%clk 0:02:17.3]} 18. Bb5
{[%clk 0:01:46.1]} 18... g5 {[%clk 0:01:52.5]} 19. Nxd4 {[%clk 0:01:41.6]} 19...
Bc8 {[%clk 0:01:43.9]} 20. Rc1 {[%clk 0:01:34.3]} 20... g4 {[%clk 0:01:35.9]}
21. h4 {[%clk 0:01:32]} 21... Bh6 {[%clk 0:01:29.1]} 22. Rc7 {[%clk 0:01:24.9]}
22... Ng6 {[%clk 0:01:25]} 23. h5 {[%clk 0:01:19.2]} 23... Nf4 {[%clk
0:01:19.2]} 24. Rxc8 {[%clk 0:01:11]} 24... Raxc8 {[%clk 0:01:12.2]} 25. Nf5
{[%clk 0:01:09.1]} 25... Nxh5 {[%clk 0:01:06.2]} 26. Qxg4+ {[%clk 0:01:07.3]}
26... Ng7 {[%clk 0:01:06]} 27. Bh4 {[%clk 0:01:03.4]} 27... Qxb2 {[%clk
0:00:59]} 28. Nxh6+ {[%clk 0:01:02.7]} 28... Kh8 {[%clk 0:00:59.5]} 29. Nxf7+
{[%clk 0:01:01.7]} 29... Kg8 {[%clk 0:00:56.8]} 30. Bd7 {[%clk 0:00:53.6]} 30...
Rc1 {[%clk 0:00:49.1]} 31. Nh6+ {[%clk 0:00:50.7]} 31... Kh8 {[%clk 0:00:49.3]}
32. f3 {[%clk 0:00:29.1]} 32... Rxe1+ {[%clk 0:00:48.4]} 33. Bxe1 {[%clk
0:00:29.1]} 33... Qc1 {[%clk 0:00:48.7]} 34. Qh4 {[%clk 0:00:29.2]} 34... Qc7
{[%clk 0:00:36]} 35. Be6 {[%clk 0:00:24.5]} 35... Qc5+ {[%clk 0:00:31.9]} 36.
Kh1 {[%clk 0:00:23.1]} 36... Qc7 {[%clk 0:00:26.6]} 37. Bg3 {[%clk 0:00:21.6]}
37... b5 {[%clk 0:00:22]} 38. Qg5 {[%clk 0:00:18.2]} 38... b4 {[%clk 0:00:18.7]}
39. e5 {[%clk 0:00:18.4]} 39... Nxe6 {[%clk 0:00:16]} 40. dxe6 {[%clk
0:00:18.1]} 40... dxe5 {[%clk 0:00:09.7]} 41. Bxe5+ {[%clk 0:00:16.8]} 1-0

[Event "Late-Titled-Tuesday-Blitz-March-05-2024"]
[Site "Chess.com"]
[Date "2024.03.05"]
[Round "7"]
[White "Sanan_Sjugirov"]
[Black "baki83"]
[Result "1-0"]
[WhiteElo "2993"]
[BlackElo "2822"]
[TimeControl "180+1"]
[EndTime "15:14:59 PST"]
[Termination "Sanan_Sjugirov won by checkmate"]

1. e4 {[%clk 0:02:56.3]} 1... c5 {[%clk 0:02:59.8]} 2. Nf3 {[%clk 0:02:56.2]}
2... d6 {[%clk 0:02:59.5]} 3. d4 {[%clk 0:02:55.2]} 3... cxd4 {[%clk 0:02:59.8]}
4. Nxd4 {[%clk 0:02:56.1]} 4... Nf6 {[%clk 0:03:00.2]} 5. Nc3 {[%clk 0:02:56.8]}
5... Nc6 {[%clk 0:03:00.8]} 6. Bg5 {[%clk 0:02:56.5]} 6... e6 {[%clk 0:03:01.1]}
7. Qd2 {[%clk 0:02:56.7]} 7... a6 {[%clk 0:03:01.6]} 8. O-O-O {[%clk 0:02:56.3]}
8... Bd7 {[%clk 0:03:02.1]} 9. f4 {[%clk 0:02:54.8]} 9... Be7 {[%clk 0:02:52.8]}
10. Nf3 {[%clk 0:02:54.8]} 10... b5 {[%clk 0:02:52.1]} 11. Bxf6 {[%clk 0:02:55]}
11... gxf6 {[%clk 0:02:49.6]} 12. Kb1 {[%clk 0:02:48.9]} 12... Qb6 {[%clk
0:02:44.4]} 13. f5 {[%clk 0:02:42.3]} 13... h5 {[%clk 0:02:43.8]} 14. Bd3 {[%clk
0:02:41.3]} 14... O-O-O {[%clk 0:02:42]} 15. Rhe1 {[%clk 0:02:38.9]} 15... Kb8
{[%clk 0:02:40.9]} 16. Ne2 {[%clk 0:02:31.4]} 16... Ne5 {[%clk 0:02:27.4]} 17.
Nfd4 {[%clk 0:02:23.2]} 17... Bf8 {[%clk 0:02:22.4]} 18. c3 {[%clk 0:02:16.6]}
18... Bh6 {[%clk 0:02:21.6]} 19. Qc2 {[%clk 0:02:16.9]} 19... Rc8 {[%clk
0:02:17.3]} 20. fxe6 {[%clk 0:02:13.4]} 20... fxe6 {[%clk 0:02:15.8]} 21. Qb3
{[%clk 0:02:12.5]} 21... Qb7 {[%clk 0:02:02.7]} 22. Ka1 {[%clk 0:00:45.3]} 22...
Nxd3 {[%clk 0:01:44.9]} 23. Rxd3 {[%clk 0:00:46.2]} 23... Qxe4 {[%clk
0:01:44.9]} 24. Rdd1 {[%clk 0:00:46.9]} 24... d5 {[%clk 0:01:19.9]} 25. Qa3
{[%clk 0:00:37.1]} 25... e5 {[%clk 0:00:54]} 26. Qd6+ {[%clk 0:00:35.9]} 26...
Rc7 {[%clk 0:00:54.2]} 27. Ng3 {[%clk 0:00:25.6]} 27... Qg6 {[%clk 0:00:33.2]}
28. Nb3 {[%clk 0:00:21.7]} 28... Bg4 {[%clk 0:00:22.9]} 29. Rxd5 {[%clk
0:00:16.7]} 29... Rc8 {[%clk 0:00:18.7]} 30. Nc5 {[%clk 0:00:14.8]} 30... Bf8
{[%clk 0:00:06.3]} 31. Qb6+ {[%clk 0:00:14.7]} 31... Ka8 {[%clk 0:00:05.9]} 32.
Qxa6+ {[%clk 0:00:15.2]} 32... Kb8 {[%clk 0:00:06.4]} 33. Qxb5+ {[%clk 0:00:15]}
33... Ka8 {[%clk 0:00:06.8]} 34. Na4 {[%clk 0:00:13.1]} 34... Rb7 {[%clk
0:00:02.9]} 35. Nb6+ {[%clk 0:00:08.6]} 35... Kb8 {[%clk 0:00:03.4]} 36. Qa6
{[%clk 0:00:08.2]} 36... Rc6 {[%clk 0:00:03.1]} 37. Qa8+ {[%clk 0:00:07.3]}
37... Kc7 {[%clk 0:00:03.5]} 38. Qd8# {[%clk 0:00:08.2]} 1-0

[Event "Late-Titled-Tuesday-Blitz-March-05-2024"]
[Site "Chess.com"]
[Date "2024.03.05"]
[Round "7"]
[White "subham777"]
[Black "JoakimVonAnd"]
[Result "0-1"]
[WhiteElo "2592"]
[BlackElo "2708"]
[TimeControl "180+1"]
[EndTime "15:14:59 PST"]
[Termination "JoakimVonAnd won by resignation"]

1. e4 {[%clk 0:03:00.9]} 1... c6 {[%clk 0:02:56.5]} 2. c4 {[%clk 0:03:00.5]}
2... d5 {[%clk 0:02:56.5]} 3. cxd5 {[%clk 0:03:01.4]} 3... cxd5 {[%clk
0:02:57.3]} 4. exd5 {[%clk 0:03:02.2]} 4... Nf6 {[%clk 0:02:57.4]} 5. Nc3 {[%clk
0:03:02.9]} 5... Nxd5 {[%clk 0:02:57]} 6. Nf3 {[%clk 0:03:03.3]} 6... Nc6 {[%clk
0:02:55.8]} 7. Bc4 {[%clk 0:02:59.5]} 7... e6 {[%clk 0:02:53.5]} 8. O-O {[%clk
0:02:57.6]} 8... Be7 {[%clk 0:02:53.2]} 9. d4 {[%clk 0:02:57.3]} 9... O-O {[%clk
0:02:53.5]} 10. Re1 {[%clk 0:02:56.5]} 10... Bf6 {[%clk 0:02:43.7]} 11. Bb3
{[%clk 0:02:54.1]} 11... Nxc3 {[%clk 0:02:37.6]} 12. bxc3 {[%clk 0:02:51.8]}
12... b6 {[%clk 0:02:37.2]} 13. Be3 {[%clk 0:02:44.9]} 13... Bb7 {[%clk
0:02:36.8]} 14. Rc1 {[%clk 0:02:43.2]} 14... Rc8 {[%clk 0:02:36.7]} 15. c4
{[%clk 0:02:35]} 15... Ne7 {[%clk 0:02:33.6]} 16. Ne5 {[%clk 0:02:26.9]} 16...
Nf5 {[%clk 0:02:26.7]} 17. Bc2 {[%clk 0:01:56]} 17... Bxe5 {[%clk 0:02:15.3]}
18. dxe5 {[%clk 0:01:55.1]} 18... Nxe3 {[%clk 0:02:13.2]} 19. Rxe3 {[%clk
0:01:38.2]} 19... Qxd1+ {[%clk 0:02:13.1]} 20. Bxd1 {[%clk 0:01:37.9]} 20...
Rfd8 {[%clk 0:02:13.2]} 21. Bb3 {[%clk 0:01:36.6]} 21... Rd2 {[%clk 0:02:11.2]}
22. h3 {[%clk 0:01:35.7]} 22... g6 {[%clk 0:02:07.3]} 23. Rce1 {[%clk 0:01:24]}
23... Ba6 {[%clk 0:02:02.4]} 24. Re4 {[%clk 0:01:21]} 24... Rc5 {[%clk
0:02:01.1]} 25. R1e3 {[%clk 0:01:18.4]} 25... Bb7 {[%clk 0:01:59.1]} 26. Rf4
{[%clk 0:01:15.8]} 26... a5 {[%clk 0:01:57.6]} 27. h4 {[%clk 0:01:12.3]} 27...
Bc6 {[%clk 0:01:48.3]} 28. a4 {[%clk 0:01:07.9]} 28... Rb2 {[%clk 0:01:26.8]}
29. Rd4 {[%clk 0:00:58.7]} 29... Rb1+ {[%clk 0:01:21.6]} 30. Kh2 {[%clk
0:00:57.5]} 30... Ra1 {[%clk 0:01:18.4]} 31. Rd8+ {[%clk 0:00:39.1]} 31... Kg7
{[%clk 0:01:18.4]} 32. Rb8 {[%clk 0:00:35.3]} 32... Bxa4 {[%clk 0:01:18.2]} 33.
Bxa4 {[%clk 0:00:35.6]} 33... Rxa4 {[%clk 0:01:19]} 34. Rxb6 {[%clk 0:00:28.8]}
34... Raxc4 {[%clk 0:01:19]} 35. Rb7 {[%clk 0:00:24.3]} 35... Rf4 {[%clk
0:01:17.9]} 36. Kg3 {[%clk 0:00:15.7]} 36... Rf5 {[%clk 0:01:17.9]} 37. f4
{[%clk 0:00:15.3]} 37... Rc4 {[%clk 0:01:10.9]} 38. Rf3 {[%clk 0:00:14.9]} 38...
a4 {[%clk 0:01:10.7]} 39. Ra7 {[%clk 0:00:14.7]} 39... h6 {[%clk 0:01:10.3]} 40.
Ra8 {[%clk 0:00:11.8]} 40... g5 {[%clk 0:01:10]} 41. fxg5 {[%clk 0:00:10.3]}
41... Rxf3+ {[%clk 0:01:07.2]} 42. gxf3 {[%clk 0:00:11.2]} 42... hxg5 {[%clk
0:01:05.2]} 43. hxg5 {[%clk 0:00:12.1]} 43... Kg6 {[%clk 0:01:04.7]} 44. f4
{[%clk 0:00:11.4]} 44... Kf5 {[%clk 0:01:05]} 45. Ra7 {[%clk 0:00:10.6]} 45...
Rc3+ {[%clk 0:01:04.5]} 46. Kh4 {[%clk 0:00:10.8]} 46... Kxf4 {[%clk 0:01:01.3]}
47. Rxf7+ {[%clk 0:00:11]} 47... Kxe5 {[%clk 0:01:01.5]} 48. g6 {[%clk
0:00:11.2]} 48... Rc1 {[%clk 0:00:58.3]} 49. g7 {[%clk 0:00:09.5]} 49... Rg1
{[%clk 0:00:57.9]} 50. Kh5 {[%clk 0:00:09.8]} 50... a3 {[%clk 0:00:58.1]} 51.
Kh6 {[%clk 0:00:10.3]} 51... Rh1+ {[%clk 0:00:55.5]} 52. Kg6 {[%clk 0:00:10.1]}
52... Rg1+ {[%clk 0:00:56.1]} 53. Kh6 {[%clk 0:00:10.1]} 53... a2 {[%clk
0:00:48.3]} 54. Ra7 {[%clk 0:00:10.4]} 54... a1=Q {[%clk 0:00:47.8]} 55. Rxa1
{[%clk 0:00:08.7]} 55... Rxa1 {[%clk 0:00:48.7]} 0-1